fUSD/lending_fUSD_20251006
["ID","MTS","AMOUNT","RATE_DAILY","PERIOD"]
[389572459,1759722662335,-3073.59,0.00016438,2]
[389572460,1759722662344,-3338.67,0.00016438,2]
[389572461,1759722662353,-3073.59,0.00016438,2]
[389572462,1759722662362,-3338.67,0.00016438,2]
[389572463,1759722662370,-3073.59,0.00016438,2]
[389572464,1759722662380,-3338.67,0.00016438,2]
[389572465,1759722662389,-3073.59,0.00016438,2]
[389572466,1759722662398,-503.07689623,0.00016438,2]
[389572467,1759722662407,-3073.59,0.00016438,2]
[389572468,1759722662416,-3338.67,0.00016438,2]
[389572469,1759722662425,-3073.59,0.00016438,2]
[389572470,1759722662435,-3338.67,0.00016438,2]
[389572471,1759722662445,-3073.59,0.00016438,2]
[389572472,1759722662455,-3338.67,0.00016438,2]
[389572473,1759722662463,-3073.59,0.00016438,2]
[389572474,1759722662473,-3338.67,0.00016438,2]
[389572475,1759722662482,-500.0,0.00016438,2]
[389572476,1759722662491,-3338.67,0.00016438,2]
[389572477,1759722662500,-3073.59,0.00016438,2]
[389572478,1759722662510,-500.0,0.00016438,2]
[389572479,1759722662519,-3073.59,0.00016438,2]
[389572480,1759722662528,-3338.67,0.00016438,2]
[389572481,1759722662538,-500.0,0.00016438,2]
[389572482,1759722662547,-3338.67,0.00016438,2]
[389572483,1759722662557,-3073.59,0.00016438,2]
[389572484,1759722662566,-500.0,0.00016438,2]
[389572485,1759722662575,-3073.59,0.00016438,2]
[389572486,1759722662584,-3338.67,0.00016438,2]
[389572487,1759722662593,-500.0,0.00016438,2]
[389572488,1759722662603,-3073.59,0.00016438,2]
[389572489,1759722662612,-3338.67,0.00016438,2]
[389572490,1759722662621,-500.0,0.00016438,2]
[389572491,1759722662630,-3073.59,0.00016438,2]
[389572492,1759722662640,-3338.67,0.00016438,2]
[389572493,1759722662649,-500.0,0.00016438,2]
[389572494,1759722662659,-3073.59,0.00016438,2]
[389572495,1759722662668,-3338.67,0.00016438,2]
[389572496,1759722662677,-500.0,0.00016438,2]
[389572497,1759722662740,-3073.59,0.00016438,2]
[389572498,1759722662750,-3338.67,0.00016438,2]
[389572499,1759722662759,-500.0,0.00016438,2]
[389572500,1759722662767,-3338.67,0.00016438,2]
[389572501,1759722662776,-3073.59,0.00016438,2]
[389572502,1759722662785,-3338.67,0.00016438,2]
[389572503,1759722662793,-3073.59,0.00016438,2]
[389572504,1759722662802,-500.0,0.00016438,2]
[389572505,1759722662811,-3073.59,0.00016438,2]
[389572506,1759722662820,-3338.67,0.00016438,2]
[389572507,1759722662829,-500.0,0.00016438,2]
[389572508,1759722662838,-500.0,0.00016438,2]
[389572509,1759722662847,-3073.59,0.00016438,2]
[389572510,1759722662856,-3338.67,0.00016438,2]
[389572511,1759722662865,-500.0,0.00016438,2]
[389572512,1759722662874,-500.0,0.00016438,2]
[389572513,1759722662883,-3073.59,0.00016438,2]
[389572514,1759722662892,-510.11086048,0.00016438,2]
[389572515,1759722662901,-3338.67,0.00016438,2]
[389572516,1759722662909,-500.0,0.00016438,2]
[389572517,1759722662918,-3073.59,0.00016438,2]
[389572518,1759722662927,-3338.67,0.00016438,2]
[389572519,1759722662936,-530.51191056,0.00016438,2]
[389572520,1759722662945,-3073.59,0.00016438,2]
[389572521,1759722662954,-3338.67,0.00016438,2]
[389572522,1759722662963,-3073.70045126,0.00016438,2]
[389572523,1759722662972,-3338.88,0.00016438,2]
[389572524,1759722662981,-1948.99,0.00016438,2]
[389572525,1759722662993,-1948.99,0.00016438,2]
[389572526,1759722663002,-1948.99,0.00016438,2]
[389572527,1759722663011,-1948.99,0.00016438,2]
[389572528,1759722663020,-1948.99,0.00016438,2]
[389572529,1759722663030,-1948.99,0.00016438,2]
[389572530,1759722663039,-500.0,0.00016438,2]
[389572531,1759722663048,-1582.78173353,0.00016438,2]
[389572532,1759722663615,-552.371449,0.00015247,2]
[389572533,1759722663625,-366.20826647,0.00016438,2]
[389572534,1759722663635,-500.0,0.00016438,2]
[389572535,1759722663644,-1948.99,0.00016438,2]
[389572536,1759722663653,-500.0,0.00016438,2]
[389572537,1759722663663,-1948.99,0.00016438,2]
[389572538,1759722663671,-500.0,0.00016438,2]
[389572539,1759722663681,-500.0,0.00016438,2]
[389572540,1759722663690,-1948.99,0.00016438,2]
[389572541,1759722663699,-500.0,0.00016438,2]
[389572542,1759722663709,-1948.99,0.00016438,2]
[389572543,1759722663718,-500.0,0.00016438,2]
[389572544,1759722663727,-500.0,0.00016438,2]
[389572545,1759722663736,-1948.99,0.00016438,2]
[389572546,1759722663745,-500.0,0.00016438,2]
[389572547,1759722663754,-500.0,0.00016438,2]
[389572548,1759722663763,-1948.99,0.00016438,2]
[389572549,1759722663772,-500.0,0.00016438,2]
[389572550,1759722663780,-500.0,0.00016438,2]
[389572551,1759722663790,-500.0,0.00016438,2]
[389572552,1759722663799,-1948.99,0.00016438,2]
[389572553,1759722663808,-500.0,0.00016438,2]
[389572554,1759722663817,-500.0,0.00016438,2]
[389572555,1759722663826,-1948.99,0.00016438,2]
[389572556,1759722663835,-500.0,0.00016438,2]
[389572557,1759722663844,-500.0,0.00016438,2]
[389572558,1759722663852,-1948.99,0.00016438,2]
[389572559,1759722663861,-500.0,0.00016438,2]
[389572560,1759722663870,-500.0,0.00016438,2]
[389572561,1759722663879,-1948.99,0.00016438,2]
[389572562,1759722663888,-500.0,0.00016438,2]
[389572563,1759722663897,-500.0,0.00016438,2]
[389572564,1759722663906,-1948.99,0.00016438,2]
[389572565,1759722663916,-129.38283033,0.00016438,2]
[389572566,1759722663936,-370.61716967,0.00016438,2]
[389572567,1759722663944,-500.0,0.00016438,2]
[389572568,1759722663953,-1948.99,0.00016438,2]
[389572569,1759722663962,-500.0,0.00016438,2]
[389572570,1759722663971,-621.86287068,0.00016438,2]
[389572571,1759722663980,-500.0,0.00016438,2]
[389572572,1759722663993,-1341.85019975,0.00016438,2]
[389572573,1759722664020,-500.0,0.00016438,2]
[389572574,1759722664634,-150.0,0.00014999,2]
[389572575,1759722664642,-150.0,0.00014999,2]
[389572576,1759722664651,-288.35031,0.00015,2]
[389572577,1759722664660,-288.35031,0.00015,2]
[389572578,1759722664669,-158.609423,0.00015,2]
[389572579,1759722664679,-288.35031,0.00015,2]
[389572580,1759722664687,-150.0,0.00015273,2]
[389572581,1759722664697,-150.0,0.00015273,2]
[389572582,1759722664706,-202.76435848,0.00015547,2]
[389572583,1759722664715,-200.0,0.00015547,2]
[389572584,1759722664724,-125.40437216,0.00016238,2]
[389572585,1759722664735,-2501.108,0.00016238,2]
[389572586,1759722664756,-1183.535,0.00015736,2]
[389572587,1759722664765,-11187.2765801,0.00016238,2]
[389572588,1759722664776,-1906.24648588,0.00016238,2]
[389572589,1759722664805,-158.609423,0.00015,2]
[389572590,1759722664815,-518.87965137,0.00016238,2]
[389572591,1759722664826,-310.55094479,0.00016238,2]
[389572592,1759722664840,-288.35031,0.00015,2]
[389572593,1759722664849,-13512.23272644,0.00016238,2]
[389572594,1759722664858,-107.13980025,0.00016438,2]
[389572595,1759722664867,-216.17235732,0.00016438,2]
[389572596,1759722664878,-504.60119427,0.00016438,2]
[389572597,1759722664887,-1948.99,0.00016438,2]
[389572598,1759722664896,-1948.99,0.00016438,2]
[389572599,1759722664906,-1948.99,0.00016438,2]
[389572600,1759722664915,-1949.14344788,0.00016438,2]
[389572601,1759722664924,-500.0,0.00016438,2]
[389572602,1759722664934,-155.63557727,0.00016438,2]
[389572603,1759722664943,-1364.49,0.00016438,2]
[389572604,1759722664952,-1364.49,0.00016438,2]
[389572605,1759722664962,-1364.49,0.00016438,2]
[389572606,1759722664971,-1364.49,0.00016438,2]
[389572607,1759722664982,-1364.49,0.00016438,2]
[389572608,1759722664995,-1364.49,0.00016438,2]
[389572609,1759722665004,-1364.49,0.00016438,2]
[389572610,1759722665013,-1364.49,0.00016438,2]
[389572611,1759722665022,-1364.49,0.00016438,2]
[389572612,1759722665035,-100.81689385,0.00016438,2]
[389572613,1759722665066,-150.0,0.00014999,2]
[389572614,1759722665075,-1263.67310615,0.00016438,2]
[389572615,1759722665084,-1364.49,0.00016438,2]
[389572616,1759722665094,-1364.49,0.00016438,2]
[389572617,1759722665104,-500.0,0.00016438,2]
[389572618,1759722665113,-1364.49,0.00016438,2]
[389572619,1759722665126,-192.65018187,0.00016438,2]
[389572620,1759722665139,-315.79359716,0.00016438,2]
[389572621,1759722665148,-125.54337516,0.00016438,2]
[389572622,1759722665158,-1238.94662484,0.00016438,2]
[389572623,1759722665168,-1364.49,0.00016438,2]
[389572624,1759722665177,-1364.49,0.00016438,2]
[389572625,1759722665186,-1364.49,0.00016438,2]
[389572626,1759722665195,-1301.27909019,0.00016438,2]
[389572627,1759722665220,-63.21090981,0.00016438,2]
[389572628,1759722665229,-1364.49,0.00016438,2]
[389572629,1759722665238,-1364.49,0.00016438,2]
[389572630,1759722665248,-1364.49,0.00016438,2]
[389572631,1759722665257,-1364.49,0.00016438,2]
[389572632,1759722665266,-1364.49,0.00016438,2]
[389572633,1759722665275,-1364.54949228,0.00016438,2]
[389572634,1759722665284,-511.54189255,0.00016438,2]
[389572635,1759722665293,-500.0,0.00016438,2]
[389572636,1759722665302,-500.0,0.00016438,2]
[389572637,1759722665311,-500.0,0.00016438,2]
[389572638,1759722665321,-500.0,0.00016438,2]
[389572639,1759722665329,-500.0,0.00016438,2]
[389572640,1759722665338,-500.0,0.00016438,2]
[389572641,1759722665351,-500.0,0.00016438,2]
[389572642,1759722665360,-500.0,0.00016438,2]
[389572643,1759722665370,-500.0,0.00016438,2]
[389572644,1759722665379,-500.0,0.00016438,2]
[389572645,1759722665389,-500.0,0.00016438,2]
[389572646,1759722665399,-500.0,0.00016438,2]
[389572647,1759722665408,-500.0,0.00016438,2]
[389572648,1759722665419,-500.0,0.00016438,2]
[389572649,1759722665428,-500.0,0.00016438,2]
[389572650,1759722665437,-594.44395751,0.00016438,2]
[389572651,1759722665447,-500.0,0.00016438,2]
[389572652,1759722665456,-500.0,0.00016438,2]
[389572653,1759722665466,-500.0,0.00016438,2]
[389572654,1759722665478,-500.0,0.00016438,2]
[389572655,1759722665487,-500.0,0.00016438,2]
[389572656,1759722665498,-500.0,0.00016438,2]
[389572657,1759722665508,-500.0,0.00016438,2]
[389572658,1759722665517,-500.0,0.00016438,2]
[389572659,1759722665527,-186.64960852,0.00016438,2]
[389572662,1759723448875,367.31494084,0.0001225,2]
[389572663,1759723448964,979.50650894,0.0001292,2]
[389572664,1759723449086,367.31494085,0.00012473,2]
[389572665,1759723449200,734.6298817,0.00012696,2]
[389572666,1759723449467,612.19156808,0.00012585,2]
[389572667,1759723449842,489.75325447,0.00012473,2]
[389572668,1759723450007,857.06819532,0.00012808,2]
[389572669,1759723450067,1101.94482256,0.00013031,2]
[389572670,1759723529136,-1224.38313617,0.00013143,2]
[389572671,1759723529161,-1346.82144979,0.00013254,2]
[389572675,1759723607289,326.31067275,0.0001235,2]
[389572676,1759723607317,489.46600915,0.00013022,2]
[389572677,1759723607352,380.6957849,0.00012798,2]
[389572678,1759723607557,435.08089703,0.0001291,2]
[389572679,1759723607590,217.54044851,0.00012574,2]
[389572680,1759723607998,271.92556064,0.00012574,2]
[389572681,1759723608291,326.31067277,0.00012686,2]
[389572682,1759723619721,-543.85112128,0.00013134,2]
[389572683,1759723708952,294.0,0.000128,2]
[389572684,1759723765709,262.15922008,0.0001235,2]
[389572685,1759723765776,524.31844017,0.00012559,2]
[389572686,1759723765908,1310.79610043,0.00012767,2]
[389572687,1759723766118,1572.95532051,0.00012872,2]
[389572688,1759723766153,786.47766025,0.00012559,2]
[389572689,1759723766231,2097.27376068,0.0001308,2]
[389572690,1759723766309,1048.63688034,0.00012663,2]
[389572698,1759723832295,-1865.13396682,0.00013602,2]
[389572699,1759723832451,-1397.72193436,0.00013602,2]
[389572700,1759723832505,-145.21395994,0.00013602,2]
[389572701,1759723832514,-3670.2290812,0.00013706,2]
[389572702,1759723832523,-300.0,0.00013809,2]
[389572703,1759723832532,-3932.38830129,0.0001381,2]
[389572704,1759723832541,-4194.54752137,0.00013915,2]
[389572705,1759723832551,-288.0,0.0001398,2]
[389572706,1759723832560,-4456.70674146,0.00014019,2]
[389572707,1759723832569,-394.94,0.00014097,2]
[389572708,1759723832581,-4718.86596155,0.00014123,2]
[389572709,1759723832591,-4981.02518163,0.00014228,2]
[389572710,1759723832599,-388.0,0.00014239,2]
[389572711,1759723832608,-292.0,0.0001424,2]
[389572713,1759723832617,-13281.41645808,0.00014261,2]
[389572719,1759723838092,-488.66430191,0.00014261,2]
[389572720,1759723838112,-6302.49332548,0.00014261,2]
[389572721,1759723838206,-7533.68760996,0.00014261,2]
[389572722,1759723838252,-385.36424049,0.00014261,2]
[389572723,1759723838306,-76.76406408,0.00014261,2]
[389572724,1759723838319,-150.0,0.00014287,7]
[389572725,1759723838333,-1144.50339951,0.00014332,2]
[389572726,1759723838347,-400.99999879,0.00014332,2]
[389572727,1759723838372,-3697.68100342,0.00014332,2]
[389572728,1759723838385,-983.25890506,0.00014355,2]
[389572729,1759723838397,-5505.34362181,0.00014436,2]
[389572730,1759723838410,-205.03383642,0.00014447,2]
[389572731,1759723838422,-500.0,0.00014447,2]
[389572732,1759723838433,-195.0,0.00014457,2]
[389572733,1759723838443,-250.0,0.00014457,2]
[389572734,1759723838454,-2500.0,0.00014457,2]
[389572735,1759723838467,-5767.50284189,0.00014541,2]
[389572736,1759723838487,-195.0,0.00014571,2]
[389572737,1759723838498,-300.0,0.00014571,2]
[389572738,1759723838509,-195.0,0.00014703,2]
[389572740,1759723838522,-150.0,0.00014703,2]
[389572742,1759723838533,-745.28703253,0.00014749,2]
[389572746,1759723838564,-358.33485164,0.00014749,2]
[389572915,1759723840145,-262.632924,0.00014749,2]
[389572921,1759723840199,-445.30339811,0.00014749,2]
[389573288,1759723843562,-4480.26307578,0.00014749,2]
[389573290,1759723843574,-150.0,0.0001477,2]
[389573292,1759723843588,-150.0,0.0001477,2]
[389573295,1759723843600,-150.0,0.0001477,2]
[389573297,1759723843612,-152.65428645,0.0001477,2]
[389573299,1759723843624,-394.94,0.00014801,2]
[389573301,1759723843637,-6553.98050215,0.00014853,2]
[389573303,1759723843648,-219.8133,0.000149,2]
[389573305,1759723843661,-2785.7516,0.000149,2]
[389573307,1759723843670,-183.99,0.00014935,2]
[389573309,1759723843680,-6816.13972224,0.00014958,2]
[389573311,1759723843689,-7965.41053268,0.00014973,2]
[389573361,1759723844109,-231.28369723,0.00014973,2]
[389573364,1759723844133,-595.15383784,0.0001499,2]
[389573367,1759723844149,-322.6107,0.00014991,2]
[389573369,1759723844159,-601.3376128,0.00014991,2]
[389573371,1759723844168,-2000.0,0.00014991,2]
[389573373,1759723844177,-2000.0,0.00014991,2]
[389573375,1759723844187,-2000.0,0.00014991,2]
[389573376,1759723844196,-2000.0,0.00014991,2]
[389573379,1759723844207,-2000.0,0.00014991,2]
[389573381,1759723844216,-2000.0,0.00014991,2]
[389573383,1759723844226,-2000.0,0.00014991,2]
[389573384,1759723844235,-2000.0,0.00014991,2]
[389573387,1759723844244,-2000.0,0.00014991,2]
[389573389,1759723844253,-2000.0,0.00014991,2]
[389573391,1759723844263,-2000.0,0.00014991,2]
[389573392,1759723844272,-2000.0,0.00014991,2]
[389573395,1759723844282,-2000.0,0.00014991,2]
[389573397,1759723844291,-2000.0,0.00014991,2]
[389573399,1759723844301,-2000.0,0.00014991,2]
[389573401,1759723844310,-2000.0,0.00014991,2]
[389573403,1759723844320,-548.38,0.00014991,2]
[389573405,1759723844329,-209.1,0.00014991,2]
[389573407,1759723844338,-154.672283,0.00015,2]
[389573409,1759723844347,-182.105325,0.00015,2]
[389573411,1759723844356,-3095.790532,0.00015,2]
[389573413,1759723844365,-156.657692,0.00015,2]
[389573415,1759723844374,-168.590164,0.00015,2]
[389573417,1759723844384,-154.672283,0.00015,2]
[389573419,1759723844394,-2227.280868,0.00015,2]
[389573421,1759723844403,-406.856169,0.00015,2]
[389573423,1759723844412,-278.410109,0.00015,2]
[389573425,1759723844422,-364.210651,0.00015,2]
[389573427,1759723844432,-8086.72325086,0.00015028,2]
[389573429,1759723844442,-7078.29894232,0.00015062,2]
[389573431,1759723844451,-3207.932,0.00015107,2]
[389573433,1759723844460,-280.852,0.00015107,2]
[389573435,1759723844470,-420.0,0.00015131,2]
[389573437,1759723844479,-666.0,0.00015151,3]
[389573439,1759723844489,-7340.45816241,0.00015166,2]
[389573441,1759723844498,-282.0,0.0001517,2]
[389573443,1759723844507,-153.91,0.00015191,2]
[389573445,1759723844519,-200.0,0.00015237,2]
[389573447,1759723844528,-548.38,0.00015265,2]
[389573449,1759723844537,-209.1,0.00015265,2]
[389573451,1759723844550,-7602.6173825,0.00015271,2]
[389573453,1759723844559,-300.0,0.00015298,2]
[389573455,1759723844568,-7864.77660273,0.00015375,2]
[389573457,1759723844582,-370.68887098,0.00015398,2]
[389573460,1759723844591,-394.94,0.00015506,2]
[389573461,1759723844600,-548.38,0.00015539,2]
[389573464,1759723844610,-209.1,0.00015539,2]
[389573466,1759723844619,-700.0,0.0001557,2]
[389573467,1759723844628,-2000.0,0.00015593,2]
[389573470,1759723844638,-500.0,0.00015593,2]
[389573471,1759723844647,-500.0,0.00015593,2]
[389573473,1759723844655,-200.0,0.00015593,2]
[389573475,1759723844664,-385.0,0.000156,2]
[389573477,1759723844673,-3072.0,0.00015725,2]
[389573479,1759723844682,-6239.0,0.00015725,2]
[389573481,1759723844691,-901.362,0.00015725,2]
[389573483,1759723844701,-4117.0,0.00015725,2]
[389573485,1759723844710,-621.0,0.00015725,2]
[389573487,1759723844719,-639.57208807,0.0001578,2]
[389573489,1759723844729,-548.38,0.00015813,2]
[389573491,1759723844738,-209.1,0.00015813,2]
[389573493,1759723844747,-255.0,0.0001582,2]
[389573495,1759723844756,-639.572088,0.00015842,2]
[389573497,1759723844765,-3401.0,0.0001588,2]
[389573499,1759723844774,-810.0,0.0001588,2]
[389573501,1759723844784,-2046.0,0.0001588,2]
[389573503,1759723844793,-1265.0,0.0001588,2]
[389573505,1759723844802,-1586.0,0.0001588,2]
[389573507,1759723844811,-604.0,0.0001588,2]
[389573509,1759723844821,-570.0,0.0001588,2]
[389573511,1759723844830,-1307.0,0.0001588,2]
[389573513,1759723844839,-815.0,0.0001588,2]
[389573515,1759723844848,-639.572088,0.00015904,2]
[389573517,1759723844857,-154.672283,0.00015941,2]
[389573518,1759723844867,-182.105325,0.00015941,2]
[389573519,1759723844876,-200.0,0.00015949,2]
[389573520,1759723844885,-639.572088,0.00015966,2]
[389573521,1759723844895,-305.68,0.0001599,2]
[389573522,1759723844904,-340.56,0.0001599,2]
[389573523,1759723844925,-3095.790532,0.00015994,2]
[389573524,1759723844934,-156.657692,0.00015994,2]
[389573525,1759723844943,-168.590164,0.00015994,2]
[389573526,1759723844952,-158.146708,0.00015994,2]
[389573527,1759723844961,-154.672283,0.00015994,2]
[389573528,1759723844970,-2227.280868,0.00015994,2]
[389573529,1759723844979,-406.856169,0.00015994,2]
[389573530,1759723844988,-278.410109,0.00015994,2]
[389573531,1759723844997,-364.210651,0.00015994,2]
[389573533,1759723845006,-639.572088,0.00016028,2]
[389573534,1759723845015,-1798.51928507,0.00016063,2]
[389573535,1759723845024,-700.0,0.0001607,2]
[389573537,1759723845033,-548.38,0.00016087,2]
[389573538,1759723845042,-209.13,0.00016087,2]
[389573540,1759723845051,-639.572088,0.0001609,2]
[389573542,1759723845060,-1054.25473038,0.00016109,2]
[389573544,1759723845070,-3945.91544624,0.00016111,2]
[389573547,1759723845079,-340.57,0.00016127,2]
[389573549,1759723845089,-3945.91544619,0.00016136,2]
[389573551,1759723845098,-154.672283,0.0001615,3]
[389573553,1759723845107,-182.105325,0.0001615,3]
[389573555,1759723845116,-3095.790532,0.0001615,3]
[389573557,1759723845124,-156.657692,0.0001615,3]
[389573558,1759723845134,-168.590164,0.0001615,3]
[389573560,1759723845143,-154.672283,0.0001615,3]
[389573562,1759723845151,-2227.280868,0.0001615,3]
[389573564,1759723845160,-406.856169,0.0001615,3]
[389573566,1759723845169,-278.410109,0.0001615,3]
[389573568,1759723845177,-364.210651,0.0001615,3]
[389573570,1759723845186,-639.572088,0.00016152,2]
[389573572,1759723845199,-139595.95140748,0.00016154,2]
[389573575,1759723845208,-3945.91544619,0.00016161,2]
[389573577,1759723845218,-3945.91544619,0.00016187,2]
[389573579,1759723845228,-394.94,0.00016211,2]
[389573581,1759723845237,-3945.91544619,0.00016212,2]
[389573583,1759723845246,-639.572088,0.00016214,2]
[389573585,1759723845256,-3945.91544619,0.00016237,2]
[389573587,1759723845266,-117340.84737728,0.00016238,2]
[389573589,1759723845275,-4596.65861,0.0001627,2]
[389573591,1759723845284,-639.572088,0.00016276,2]
[389573593,1759723845293,-200.0,0.00016306,2]
[389573595,1759723845302,-1000.0,0.00016307,2]
[389573597,1759723845311,-888.46160846,0.00016314,2]
[389573599,1759723845321,-151.0,0.00016334,2]
[389573601,1759723845330,-175.75161959,0.00016338,2]
[389573602,1759723845338,-160.61599952,0.00016338,2]
[389573604,1759723845348,-639.572088,0.00016338,2]
[389573606,1759723845358,-158.50130237,0.00016338,2]
[389573608,1759723845367,-152.31428009,0.00016338,2]
[389573610,1759723845377,-5000.0,0.00016338,2]
[389573612,1759723845386,-239.84119403,0.00016342,2]
[389573615,1759723845395,-276.0,0.0001635,2]
[389573616,1759723845405,-334.5472959,0.0001636,2]
[389573619,1759723845415,-548.41614708,0.00016361,2]
[389573621,1759723845424,-150.0,0.00016369,2]
[389573623,1759723845434,-500.0,0.00016369,2]
[389573625,1759723845446,-150.62349728,0.00016369,2]
[389573627,1759723845455,-151.13028479,0.00016369,2]
[389573629,1759723845465,-437.0,0.00016369,2]
[389573631,1759723845474,-150.0,0.00016369,2]
[389573633,1759723845483,-1716.0,0.00016369,2]
[389573634,1759723845498,-500.0,0.00016369,2]
[389573636,1759723845508,-150.0,0.00016369,2]
[389573638,1759723845517,-1077.0,0.00016369,2]
[389573640,1759723845525,-150.43604745,0.00016369,2]
[389573642,1759723845534,-150.84243942,0.00016369,2]
[389573644,1759723845543,-500.0,0.00016369,2]
[389573646,1759723845552,-150.0,0.00016369,2]
[389573648,1759723845562,-662.0,0.00016369,2]
[389573650,1759723845571,-500.0,0.00016369,2]
[389573652,1759723845587,-150.0,0.00016369,2]
[389573655,1759723845598,-150.0,0.00016369,2]
[389573657,1759723845606,-150.0,0.00016369,2]
[389573659,1759723845615,-150.0,0.00016369,2]
[389573661,1759723845626,-508.0,0.00016369,2]
[389573662,1759723845635,-150.0,0.00016369,2]
[389573664,1759723845644,-150.0,0.00016369,2]
[389573666,1759723845657,-150.0,0.00016369,2]
[389573668,1759723845666,-700.0,0.00016369,2]
[389573670,1759723845676,-484.0,0.00016369,2]
[389573672,1759723845685,-700.0,0.0001637,2]
[389573674,1759723845695,-700.0,0.0001637,2]
[389573677,1759723845705,-2500.0,0.000164,3]
[389573679,1759723845714,-655.86856721,0.000164,2]
[389573681,1759723845724,-1430.0,0.000164,2]
[389573683,1759723845733,-235.38825888,0.00016411,2]
[389573685,1759723845744,-500.0,0.00016422,2]
[389573687,1759723845753,-13419.1736601,0.00016432,2]
[389573689,1759723845763,-112839.2055635,0.00016432,2]
[389573691,1759723845771,-12830.607214,0.00016432,2]
[389573693,1759723845780,-179.7409163,0.00016432,2]
[389573695,1759723845789,-197.84721923,0.00016436,2]
[389573697,1759723845798,-55527.62,0.00016437,2]
[389573699,1759723845808,-1211.66997425,0.00016437,5]
[389573701,1759723845817,-1211.66997425,0.00016437,5]
[389573703,1759723845826,-151.85514932,0.00016437,2]
[389573705,1759723845835,-116112.15138531,0.00016438,2]
[389573707,1759723845846,-369.0,0.00016438,3]
[389573709,1759723845856,-500.0,0.00016438,2]
[389573711,1759723845866,-500.0,0.00016438,2]
[389573713,1759723845875,-500.0,0.00016438,2]
[389573715,1759723845884,-500.0,0.00016438,2]
[389573717,1759723845894,-500.0,0.00016438,2]
[389573719,1759723845903,-500.0,0.00016438,2]
[389573721,1759723845913,-500.0,0.00016438,2]
[389573724,1759723845930,-500.0,0.00016438,2]
[389573726,1759723845940,-500.0,0.00016438,2]
[389573728,1759723845949,-500.0,0.00016438,2]
[389573730,1759723845962,-500.0,0.00016438,2]
[389573732,1759723845972,-500.0,0.00016438,2]
[389573734,1759723845981,-500.0,0.00016438,2]
[389573736,1759723845991,-500.0,0.00016438,2]
[389573739,1759723846001,-500.0,0.00016438,2]
[389573741,1759723846011,-500.0,0.00016438,2]
[389573743,1759723846020,-500.0,0.00016438,2]
[389573745,1759723846030,-500.0,0.00016438,2]
[389573747,1759723846039,-500.0,0.00016438,2]
[389573749,1759723846049,-500.0,0.00016438,2]
[389573751,1759723846058,-500.0,0.00016438,2]
[389573753,1759723846067,-500.0,0.00016438,2]
[389573755,1759723846077,-500.0,0.00016438,2]
[389573757,1759723846086,-355.84223097,0.00016438,2]
[389573759,1759723846096,-511.24486878,0.00016438,2]
[389573761,1759723846105,-541.37,0.00016438,2]
[389573763,1759723846115,-541.37,0.00016438,2]
[389573766,1759723846125,-518.81,0.00016438,2]
[389573768,1759723846138,-541.37,0.00016438,2]
[389573769,1759723846147,-518.81,0.00016438,2]
[389573771,1759723846157,-541.37,0.00016438,2]
[389573774,1759723846166,-518.81,0.00016438,2]
[389573776,1759723846176,-541.37,0.00016438,2]
[389573778,1759723846185,-518.81,0.00016438,2]
[389573780,1759723846194,-541.37,0.00016438,2]
[389573782,1759723846204,-518.81,0.00016438,2]
[389573784,1759723846213,-541.37,0.00016438,2]
[389573786,1759723846223,-518.81,0.00016438,2]
[389573788,1759723846232,-541.37,0.00016438,2]
[389573790,1759723846241,-518.81,0.00016438,2]